bitfinex/quotes_SOLUSD_20250315
["timestamp","ask_amount","ask_price","bid_price","bid_amount"]
[1742052766932,60.93338887,135.26,135.18,80.6668]
[1742052766933,0.28432314,135.21,135.18,80.6668]
[1742052767229,13.07181687,135.19,135.18,80.6668]
[1742052767735,13.07181687,135.19,135.18,88.0642]
[1742052769016,13.07181687,135.2,135.18,88.0642]
[1742052770244,26.4,135.22,135.18,88.0642]
[1742052770537,39.47181687,135.22,135.18,106.558]
[1742052770725,33.07181687,135.22,135.18,106.558]
[1742052770925,13.07181687,135.21,135.18,106.558]
[1742052775937,13.07181687,135.19,135.18,88.0642]
[1742052779438,13.07181687,135.19,135.18,80.6668]
[1742052780338,13.35614001,135.19,135.18,80.6668]
[1742052780837,27.15304001,135.19,135.18,80.6668]
[1742052781254,19.75614001,135.19,135.18,80.6668]
[1742052781440,27.15304001,135.19,135.18,80.6668]
[1742052781625,19.75614001,135.19,135.18,80.6668]
[1742052782120,45.01228887,135.19,135.15,7.3989]
[1742052782323,20.28432314,135.12,135.11,0.063]
[1742052782628,13.35614001,135.12,135.11,0.063]
[1742052785323,0.28432314,135.12,135.11,0.063]
[1742052786449,13.35614001,135.12,135.11,0.063]
[1742052788747,13.35614001,135.12,135.11,7.4643]
[1742052789749,13.35614001,135.12,135.11,0.063]
[1742052790747,33.35614001,135.12,135.11,0.063]
[1742052791048,19.79614001,135.12,135.11,0.063]
[1742052791245,38.44578887,135.12,135.11,0.063]
[1742052792045,45.84658887,135.12,135.11,0.063]
[1742052792748,39.79614001,135.12,135.11,0.063]
[1742052794978,20.28432314,135.09,135.08,55.02361851]
[1742052795247,0.28432314,135.05,135.04,7.4351]
[1742052795426,13.35614001,135.05,135.04,7.4351]
[1742052796122,13.35614001,135.05,135.04,0.03]
[1742052804168,0.28432314,135.01,135.0,7.4068]
[1742052804370,13.35614001,135.01,134.98,7.4081]
[1742052804560,13.07181687,135.0,134.98,7.4081]
[1742052804753,13.07181687,134.99,134.98,7.4081]
[1742052804953,13.35614001,134.99,134.98,7.4081]
[1742052805955,13.35614001,134.99,134.97,55.05361851]
[1742052806162,13.35614001,134.99,134.97,62.46241851]
[1742052808570,6.58216157,135.01,134.97,62.46241851]
[1742052808875,0.28432314,135.01,134.97,94.05683538]
[1742052810574,13.07181687,135.02,134.97,94.05683538]
[1742052810967,13.07181687,135.01,134.97,80.98501851]
[1742052812275,13.35614001,135.0,134.97,62.46241851]
[1742052812573,13.35614001,134.98,134.97,55.05361851]
[1742052814286,20.78114179,134.98,134.97,55.05361851]
[1742052814953,27.24114179,134.98,134.97,55.05361851]
[1742052816480,20.78114179,134.98,134.97,0.03]
[1742052816678,27.22114179,134.98,134.97,0.03]
[1742052817478,0.28432314,134.94,134.91,55.02361851]
[1742052817682,20.49681865,134.92,134.91,55.02361851]
[1742052818181,20.78114179,134.92,134.91,55.02361851]
[1742052818683,20.78114179,134.92,134.91,62.43571851]
[1742052819885,40.49681865,134.93,134.91,62.43571851]
[1742052820585,20.78114179,134.94,134.91,62.43571851]
[1742052820775,20.78114179,134.94,134.91,80.96651851]
[1742052823287,20.49681865,134.96,134.92,1.6359]
[1742052823886,20.49681865,134.95,134.92,1.6359]
[1742052824384,20.49681865,134.94,134.93,7.4112]
[1742052826283,20.49681865,134.94,134.92,7.4117]
[1742052826284,20.78114179,134.94,134.92,7.4117]
[1742052826491,0.28432314,134.92,134.91,7.4121]
[1742052826680,20.78114179,134.92,134.9,7.4427]
[1742052826881,20.49681865,134.91,134.9,7.4427]
[1742052828274,20.78114179,134.91,134.9,0.03]
[1742052832799,0.28432314,134.95,134.9,0.03]
[1742052833105,20.78114179,134.93,134.91,7.4123]
[1742052835800,20.49681865,134.92,134.91,7.4123]
[1742052836098,20.49681865,134.92,134.91,62.43591851]
[1742052838599,20.78114179,134.92,134.9,0.03]
[1742052838902,40.49681865,134.91,134.9,0.03]
[1742052840279,33.13149021,134.91,134.9,0.03]
[1742052841594,59.47776221,134.91,134.9,0.03]
[1742052842308,66.86728072,134.91,134.9,0.03]
[1742052842610,59.45498072,134.91,134.9,0.03]
[1742052847506,66.86728072,134.91,134.9,0.03]
[1742052848206,59.45498072,134.91,134.9,0.03]
[1742052850990,59.45498072,134.91,134.85,18.539]
[1742052850991,0.28432314,134.9,134.85,55.02361851]
[1742052851193,20.52100872,134.88,134.84,7.4161]
[1742052851985,20.52100872,134.88,134.84,25.9565]
[1742052854218,22.4425805,134.92,134.87,20.52100872]
[1742052854219,0.28432314,134.91,134.87,20.52100872]
[1742052854510,20.52100872,134.9,134.86,20.52100872]
[1742052854717,20.52100872,134.9,134.85,22.04960872]
[1742052856415,20.52100872,134.91,134.86,25.9527]
[1742052856916,20.52100872,134.9,134.86,25.9527]
[1742052857098,20.52100872,134.89,134.86,25.9527]
[1742052857297,20.52100872,134.9,134.86,25.9527]
[1742052857601,20.80533186,134.91,134.86,46.47370872]
[1742052858608,20.80533186,134.91,134.86,127.17370872]
[1742052860616,0.14216157,134.93,134.87,26.62740872]
[1742052860930,20.52100872,134.92,134.87,243.42740872]
[1742052861416,20.52100872,134.92,134.87,222.9064]
[1742052862720,20.52100872,134.92,134.88,25.9488]
[1742052864290,13.1245475,134.92,134.88,25.9488]
[1742052864492,13.1245475,134.92,134.88,106.6488]
[1742052865317,33.26670907,134.93,134.88,119.7733475]
[1742052866114,0.28432314,134.95,134.88,156.8432475]
[1742052866296,13.26670907,134.95,134.9,13.1245475]
[1742052866604,13.26670907,134.95,134.9,93.8245475]
[1742052866916,13.26670907,134.95,134.9,80.7]
[1742052867214,13.26670907,134.95,134.91,25.9431]
[1742052867215,13.1245475,134.94,134.91,25.9431]
[1742052867917,13.1245475,134.93,134.91,25.9431]
[1742052870325,13.1245475,134.93,134.91,106.6431]
[1742052870507,13.1245475,134.94,134.91,106.6431]
[1742052871023,13.26670907,134.95,134.91,106.6431]
[1742052871625,13.1245475,134.94,134.91,106.6431]
[1742052872311,0.063,134.93,134.91,106.6431]
[1742052881748,0.20516157,134.97,134.91,156.8293475]
[1742052882045,13.32970907,134.97,134.91,292.9293475]
[1742052884545,13.32970907,134.97,134.93,25.9393]
[1742052884742,13.32970907,134.97,134.93,106.6393]
[1742052886042,13.1245475,134.95,134.93,106.6393]
[1742052886347,13.1245475,134.94,134.93,88.1112]
[1742052889227,13.40887064,134.94,134.93,80.7]
[1742052889954,13.40887064,134.94,134.93,88.1112]
[1742052891150,13.40887064,134.94,134.93,80.7]
[1742052897143,13.40887064,134.94,134.93,88.1112]
[1742052901344,13.40887064,134.94,134.93,80.7]
[1742052902153,13.40887064,134.94,134.93,88.1112]
[1742052902359,13.40887064,134.94,134.93,80.7]
[1742052903457,20.0,134.96,134.93,88.1108]
[1742052903664,33.1245475,134.96,134.93,88.1108]
[1742052904159,13.1245475,134.95,134.93,88.1108]
[1742052907261,13.1245475,134.96,134.93,88.1108]
[1742052907757,13.1245475,134.95,134.93,88.1108]
[1742052908361,13.1245475,134.96,134.93,88.1108]
[1742052909662,13.1245475,134.96,134.93,88.1408]
[1742052910036,33.1245475,134.96,134.93,88.1408]
[1742052911565,13.47187064,134.97,134.93,106.6689]
[1742052912862,33.47187064,134.97,134.93,106.6689]
[1742052916670,13.1245475,134.96,134.93,106.6689]
[1742052916865,13.1245475,134.95,134.93,106.6689]
[1742052918374,13.1245475,134.95,134.93,88.1408]
[1742052918549,13.1245475,134.94,134.93,88.1408]
[1742052919149,13.40887064,134.94,134.93,80.73]
[1742052920062,0.28432314,134.94,134.93,88.1412]
[1742052920262,19.5445475,134.95,134.93,88.1412]
[1742052920662,13.1245475,134.95,134.93,88.1412]
[1742052921970,13.1875475,134.95,134.93,88.1412]
[1742052922479,0.063,134.95,134.93,88.1412]
[1742052923481,13.1875475,134.95,134.93,88.1412]
[1742052923982,13.1245475,134.94,134.93,88.1412]
[1742052924970,0.063,134.95,134.93,88.1412]
[1742052925667,0.063,134.95,134.93,101.2657475]
[1742052926174,0.063,134.95,134.93,88.1412]
[1742052935764,13.1875475,134.95,134.93,88.1412]
[1742052937891,0.063,134.95,134.93,88.1412]
[1742052941088,13.1245475,134.94,134.93,88.1412]
[1742052941788,13.1245475,134.94,134.93,80.73]
[1742052942495,13.1245475,134.94,134.93,88.1412]
[1742052942686,13.1245475,134.94,134.93,80.73]
[1742052943389,13.40887064,134.94,134.93,80.73]
[1742052946497,13.40887064,134.94,134.93,0.03]
[1742052951705,20.0,134.92,134.91,80.73]
[1742052952010,33.1245475,134.92,134.91,80.73]
[1742052952198,52.0585195,134.92,134.91,0.03]
[1742052953807,59.4702195,134.92,134.91,0.03]
[1742052954193,52.0585195,134.92,134.91,0.03]
[1742052956984,59.4702195,134.92,134.91,0.03]
[1742052957298,52.0585195,134.92,134.91,0.03]
[1742052957717,59.4702195,134.92,134.91,0.03]
[1742052960521,59.4702195,134.92,134.86,80.73]
[1742052960522,0.28432314,134.87,134.86,80.73]
[1742052960683,0.28432314,134.87,134.86,88.145]
[1742052962621,13.40887064,134.87,134.86,88.145]
[1742052964303,8.40887064,134.87,134.86,88.145]
[1742052964604,13.1245475,134.88,134.86,88.145]
[1742052966209,13.1245475,134.87,134.86,88.145]
[1742052966502,13.26670907,134.87,134.86,88.145]
[1742052968501,13.40887064,134.87,134.86,80.73]
[1742052970812,13.40887064,134.87,134.86,88.145]
[1742052971996,0.14216157,134.88,134.86,88.145]
[1742052975014,13.26670907,134.88,134.86,88.145]
[1742052976405,33.26670907,134.87,134.86,80.73]
[1742052980013,33.26670907,134.87,134.86,88.145]
[1742052982215,20.14216157,134.87,134.86,88.145]
[1742052982423,33.26670907,134.87,134.86,88.145]
[1742052982809,33.32970907,134.87,134.86,88.145]
[1742052983011,0.063,134.87,134.86,101.2695475]
[1742052984419,13.40887064,134.93,134.86,164.6735475]
[1742052984623,13.40887064,134.93,134.88,13.1245475]
[1742052985007,13.40887064,134.93,134.89,7.4134]
[1742052985209,13.40887064,134.93,134.89,88.1134]
[1742052985411,0.14216157,134.91,134.89,88.1134]
[1742052986119,0.28432314,134.93,134.89,88.1134]
[1742052986321,0.14216157,134.91,134.89,88.1134]
[1742052986921,0.14216157,134.92,134.89,106.647]
[1742052988624,0.14216157,134.91,134.89,106.647]
[1742052992035,13.26670907,134.91,134.89,106.647]
[1742052995030,13.1245475,134.9,134.89,106.647]
[1742052995534,13.1245475,134.9,134.89,88.1134]
[1742052996827,13.26670907,134.9,134.89,88.1134]
[1742053001233,13.1875475,134.91,134.89,88.1134]
[1742053002634,0.063,134.91,134.89,88.1134]
[1742053004444,13.1875475,134.91,134.89,88.1134]
[1742053005245,0.063,134.91,134.89,88.1134]
[1742053011335,13.1875475,134.91,134.89,88.1134]
[1742053012729,0.063,134.91,134.89,88.1134]
[1742053014759,19.5245475,134.93,134.91,80.637]
[1742053016857,19.5245475,134.93,134.92,7.4117]
[1742053017235,13.1245475,134.93,134.92,7.4117]
[1742053019768,13.1245475,134.93,134.92,88.0487]
[1742053020136,0.063,134.93,134.92,88.0487]
[1742053021154,0.063,134.94,134.93,80.574]
[1742053021357,0.063,134.95,134.93,93.6985475]
[1742053022155,0.063,134.95,134.93,229.7985475]
[1742053022461,0.0001,134.95,134.93,229.7985475]
[1742053023767,0.0001,134.95,134.94,7.4107]
[1742053027357,0.0001,134.95,134.94,22.1858475]
[1742053027572,0.0001,134.95,134.94,9.0613]
[1742053028564,0.063,134.97,134.95,80.5739]
[1742053029558,0.063,134.97,134.96,7.4096]
[1742053034043,0.063,134.97,134.96,87.9835]
[1742053036853,13.1875475,134.97,134.96,87.9835]
[1742053037978,13.32970907,134.97,134.96,80.5739]
[1742053038280,13.32970907,134.97,134.93,136.163]
[1742053038281,32.1215195,134.97,134.93,80.6369]
[1742053038477,13.26670907,134.94,134.93,80.6369]
[1742053038672,13.40887064,134.94,134.93,80.6369]
[1742053039361,13.40887064,134.94,134.93,88.0481]
[1742053040384,13.40887064,134.94,134.93,80.6369]
[1742053041042,13.40887064,134.94,134.93,88.0481]
[1742053045483,13.40887064,134.94,134.93,80.6369]
[1742053045784,32.0585195,134.94,134.93,80.6369]
[1742053045974,39.4692195,134.94,134.93,80.6369]
[1742053048469,45.8950195,134.94,134.93,80.6369]
[1742053048780,0.14216157,134.9,134.88,7.4138]
[1742053049075,13.26670907,134.89,134.88,80.7]
[1742053049253,13.26670907,134.89,134.88,88.1139]
[1742053051969,13.1245475,134.9,134.88,88.1139]
[1742053054670,13.1245475,134.89,134.88,88.1139]
[1742053055057,13.1245475,134.89,134.88,88.1439]
[1742053055479,13.26670907,134.89,134.88,80.73]
[1742053056585,13.26670907,134.89,134.88,88.1439]
[1742053057184,13.1245475,134.9,134.88,88.1439]
[1742053057364,0.14216157,134.9,134.88,88.1439]
[1742053059784,33.1245475,134.91,134.88,106.6788]
[1742053062691,13.26670907,134.9,134.88,88.1439]
[1742053068294,0.14216157,134.9,134.88,88.1439]
[1742053069109,13.1245475,134.91,134.88,88.1439]
[1742053070708,0.063,134.93,134.88,119.8033475]
[1742053070904,0.063,134.93,134.89,14.7606475]
[1742053071712,0.063,134.93,134.89,1.6361]
[1742053072614,0.063,134.93,134.9,7.4128]
[1742053072911,13.1875475,134.93,134.9,7.4128]
[1742053075020,13.1245475,134.92,134.9,7.4128]
[1742053075517,0.063,134.93,134.9,88.1128]
[1742053075717,13.1245475,134.92,134.9,88.1128]
[1742053076413,13.1875475,134.93,134.9,106.645]
[1742053077213,0.063,134.93,134.9,106.645]
[1742053077519,13.1875475,134.93,134.9,106.645]
[1742053078116,0.063,134.93,134.9,106.645]
[1742053078522,0.063,134.93,134.91,1.6361]
[1742053078814,0.063,134.93,134.91,82.3361]
[1742053080120,0.063,134.93,134.92,7.4117]
[1742053084408,0.063,134.93,134.92,88.1117]
[1742053087016,13.1875475,134.93,134.92,88.1117]
[1742053088213,13.47187064,134.93,134.92,80.7]
[1742053093711,13.47187064,134.93,134.92,88.1117]
[1742053097313,13.32970907,134.93,134.92,88.1117]
[1742053099428,13.47187064,134.93,134.92,80.7]
[1742053100323,38.5215195,134.93,134.92,80.7]
[1742053100514,45.9327195,134.93,134.92,80.7]
[1742053101329,38.5215195,134.93,134.92,80.7]
[1742053102216,0.28432314,134.89,134.88,77.03814412]
[1742053102405,13.40887064,134.89,134.88,77.03814412]
[1742053108510,17.06205927,134.89,134.88,77.03814412]
[1742053111322,35.71170813,134.89,134.88,0.03]
[1742053112035,95.62329813,134.89,134.88,0.03]
[1742053115037,95.62329813,134.89,134.87,0.03]
[1742053115224,19.80887064,134.88,134.87,0.03]
[1742053116237,38.4585195,134.88,134.87,0.03]
[1742053118115,19.80887064,134.88,134.87,0.03]
[1742053127334,0.28432314,134.87,134.86,0.03]
[1742053127530,13.40887064,134.87,134.86,0.03]
[1742053128246,32.0585195,134.87,134.86,0.03]
[1742053128760,13.40887064,134.87,134.86,0.03]
[1742053129554,32.0585195,134.87,134.86,0.03]
[1742053131039,37.94724728,134.87,134.86,0.03]
[1742053131354,45.36174728,134.87,134.86,0.03]
[1742053132254,37.94724728,134.87,134.86,0.03]
[1742053132453,32.0585195,134.87,134.86,0.03]
[1742053135653,13.40887064,134.87,134.86,0.03]
[1742053139354,20.14216157,134.87,134.86,77.03814412]
[1742053139561,33.26670907,134.87,134.86,84.45314412]
[1742053139951,20.14216157,134.87,134.86,84.45314412]
[1742053140340,33.26670907,134.87,134.86,84.45314412]
[1742053140864,33.40887064,134.87,134.86,77.03814412]
[1742053141546,33.47187064,134.87,134.86,77.03814412]
[1742053142045,52.1215195,134.87,134.86,77.03814412]
[1742053143062,52.1215195,134.87,134.86,0.03]
[1742053145234,0.14216157,134.86,134.83,77.03814412]
[1742053145434,13.40887064,134.84,134.83,77.03814412]
[1742053146044,13.40887064,134.84,134.83,84.45484412]
[1742053146574,0.14216157,134.84,134.83,84.45484412]
[1742053147053,13.26670907,134.84,134.83,84.45484412]
[1742053152868,0.14216157,134.84,134.83,84.45484412]
[1742053153569,13.26670907,134.84,134.83,84.45484412]
[1742053153974,0.14216157,134.84,134.83,84.45484412]
[1742053154179,13.1245475,134.86,134.83,84.45484412]
[1742053154386,13.1245475,134.86,134.83,102.99664412]
[1742053154881,0.20516157,134.87,134.83,102.99664412]
[1742053155353,0.063,134.87,134.84,14.6865475]
[1742053155775,0.063,134.87,134.84,1.562]
[1742053156290,0.063,134.87,134.84,14.6865475]
[1742053157362,0.063,134.87,134.85,7.4156]
[1742053160571,0.063,134.87,134.85,220.52374412]
[1742053160774,13.1245475,134.9,134.85,252.18739162]
[1742053160975,13.1245475,134.9,134.86,6.2473]
[1742053161683,13.1245475,134.9,134.87,25.9508]
[1742053162189,13.1245475,134.89,134.87,25.9508]
[1742053166194,0.063,134.9,134.87,25.9508]
[1742053166397,13.1875475,134.9,134.87,102.95894412]
[1742053166589,0.063,134.9,134.87,239.05894412]
[1742053166785,0.0001,134.9,134.87,252.18349162]
[1742053166976,0.0001,134.9,134.88,14.6906475]
[1742053167281,20.063,134.93,134.9,77.00804412]
[1742053167479,33.1875475,134.93,134.9,77.00804412]
[1742053168295,33.1875475,134.93,134.91,7.4123]
[1742053169890,13.1245475,134.92,134.91,7.4123]
[1742053171395,20.063,134.93,134.91,7.4123]
[1742053171600,13.1245475,134.92,134.91,7.4123]
[1742053172398,13.1245475,134.92,134.91,84.42034412]
[1742053172588,20.063,134.93,134.91,84.42034412]
[1742053172893,0.063,134.93,134.91,84.42034412]
[1742053173699,13.1245475,134.92,134.91,84.42034412]
[1742053175301,33.1875475,134.93,134.91,84.42034412]
[1742053180192,0.063,134.93,134.91,97.54489162]
[1742053180381,13.1245475,134.96,134.91,153.13739162]
[1742053180705,13.1245475,134.96,134.91,289.23739162]
[1742053181008,13.1245475,134.94,134.91,239.05114412]
[1742053183013,13.1245475,134.95,134.91,239.05114412]
[1742053188111,13.1245475,134.94,134.91,239.05114412]
[1742053189204,13.29670907,134.95,134.91,239.05114412]
[1742053189513,13.1545475,134.95,134.91,239.05114412]
[1742053192202,0.03,134.95,134.91,252.17569162]
[1742053194825,0.063,134.97,134.96,76.97804412]
[1742053196320,0.063,134.97,134.96,84.38764412]
[1742053197921,13.1875475,134.97,134.96,84.38764412]
[1742053198110,13.1875475,134.97,134.96,76.97804412]
[1742053198111,13.32970907,134.97,134.96,76.97804412]
[1742053198310,13.32970907,134.97,134.96,84.38764412]
[1742053200431,13.1875475,134.97,134.96,84.38764412]
[1742053206220,13.1245475,134.99,134.97,63.79049662]
[1742053207933,13.1245475,134.99,134.98,7.4085]
[1742053208411,20.0,135.0,134.98,7.4085]
[1742053208612,13.1245475,134.99,134.98,71.19899662]
[1742053210934,33.1245475,135.0,134.98,71.19899662]
[1742053211234,13.1245475,134.99,134.98,71.19899662]
[1742053214617,13.40887064,134.99,134.98,63.79049662]
[1742053217220,13.26670907,134.99,134.98,71.19899662]
[1742053221245,13.26670907,134.99,134.98,63.79049662]
[1742053221736,13.26670907,134.99,134.98,71.19899662]
[1742053227144,13.1245475,134.99,134.98,71.19899662]
[1742053227926,13.1545475,134.99,134.98,71.19899662]
[1742053229048,0.03,134.99,134.98,71.19899662]
[1742053229249,0.063,135.01,135.0,63.76049662]
[1742053231470,0.063,135.01,135.0,71.16789662]
[1742053232331,0.063,135.01,135.0,207.26789662]
[1742053236729,0.063,135.04,135.03,7.4057]
[1742053236932,13.32970907,135.04,135.03,57.97864912]
[1742053239052,0.063,135.04,135.03,57.97864912]
[1742053239235,13.1875475,135.04,135.03,57.97864912]
[1742053242859,20.063,135.05,135.04,44.79060162]
[1742053245438,33.1875475,135.05,135.04,44.79060162]
[1742053246133,13.1875475,135.05,135.04,44.79060162]
[1742053249241,0.063,135.07,135.06,37.25940162]
[1742053249746,13.47187064,135.07,135.06,37.25940162]
[1742053257569,17.09843964,135.07,135.06,37.25940162]
[1742053259669,17.09843964,135.07,135.06,44.66350162]
[1742053259872,13.47187064,135.07,135.06,44.66350162]
[1742053264351,13.32970907,135.07,135.06,44.66350162]
[1742053264551,13.1875475,135.07,135.06,44.66350162]
[1742053265282,0.063,135.07,135.06,44.66350162]
[1742053268674,13.1875475,135.07,135.06,44.66350162]
[1742053268878,13.32970907,135.07,135.06,37.25940162]
[1742053269178,13.32970907,135.07,135.06,37.32240162]
[1742053269679,13.32970907,135.07,135.06,44.72650162]
[1742053270049,13.1875475,135.07,135.06,44.72650162]
[1742053271067,13.32970907,135.07,135.06,37.32240162]
[1742053271679,13.47187064,135.07,135.06,37.32240162]
[1742053275281,39.5250195,135.07,135.06,37.32240162]
[1742053277082,32.1215195,135.07,135.06,37.32240162]
[1742053277783,32.1215195,135.07,135.06,0.063]
[1742053277973,38.933972,135.05,135.04,17.45397839]
[1742053278284,58.4385195,135.05,135.04,17.45397839]
[1742053280391,39.78887064,135.05,135.04,17.45397839]
[1742053280987,39.81887064,135.05,135.04,17.45397839]
[1742053281987,58.4685195,135.05,135.04,17.45397839]
[1742053285793,39.81887064,135.05,135.04,24.85917839]
[1742053286986,39.81887064,135.05,135.04,17.45397839]
[1742053288471,39.81887064,135.05,135.0,128.9]
[1742053288472,0.28432314,135.04,135.0,24.86127839]
[1742053288786,33.26670907,135.01,135.0,17.45397839]
[1742053289568,33.40887064,135.01,135.0,17.45397839]
[1742053291694,33.26670907,135.01,135.0,24.86137839]
[1742053292188,0.14216157,135.04,135.0,24.86137839]
[1742053292189,33.1245475,135.02,135.0,24.86137839]
[1742053292978,33.1245475,135.02,135.0,24.92437839]
[1742053293995,13.1245475,135.01,135.0,24.92437839]
[1742053296004,13.40887064,135.01,135.0,24.92437839]
[1742053296174,13.40887064,135.01,135.0,17.51697839]
[1742053296582,13.26670907,135.01,135.0,24.92437839]
[1742053297723,13.26670907,135.01,135.0,17.51697839]
[1742053300393,13.26670907,135.01,135.0,24.92437839]
[1742053300704,13.26670907,135.01,135.0,17.51697839]
[1742053301902,13.40887064,135.01,135.0,17.51697839]
[1742053303689,13.26670907,135.01,135.0,24.92437839]
[1742053305688,13.1245475,135.02,135.0,24.92437839]
[1742053305903,13.1545475,135.03,135.0,43.44287839]
[1742053306791,0.03,135.03,135.0,43.44287839]
[1742053308318,33.1545475,135.03,135.0,43.44287839]
[1742053308788,13.1245475,135.02,135.0,43.44287839]
[1742053310087,20.03,135.03,135.02,4.32943089]
[1742053310309,33.1545475,135.03,135.02,11.73573089]
[1742053312507,33.29670907,135.03,135.02,11.73573089]
[1742053315795,0.03,135.03,135.02,11.73573089]
[1742053316312,13.1545475,135.03,135.02,11.73573089]
[1742053318714,0.03,135.03,135.02,11.73573089]
[1742053319700,13.1545475,135.03,135.02,11.73573089]
[1742053320517,0.03,135.03,135.02,11.73573089]
[1742053321016,13.1545475,135.03,135.02,11.73573089]
[1742053323519,13.29670907,135.03,135.02,4.32943089]
[1742053323820,13.43887064,135.03,135.02,4.32943089]
[1742053326023,65.93706064,135.03,135.02,4.32943089]
[1742053327020,84.5867095,135.03,135.02,4.32943089]
[1742053327610,91.9924095,135.03,135.02,4.32943089]
[1742053327812,65.93706064,135.03,135.02,4.32943089]
[1742053328022,13.43887064,135.03,135.02,4.32943089]
[1742053329021,13.43887064,135.03,135.02,4.39243089]
[1742053329528,13.29670907,135.03,135.02,11.79873089]
[1742053330721,13.1545475,135.03,135.02,11.79873089]
[1742053334335,13.1545475,135.03,135.02,7.4693]
[1742053334926,0.03,135.03,135.02,0.063]
[1742053335238,13.29670907,135.03,135.02,0.063]
[1742053335646,13.1545475,135.03,135.02,0.063]
[1742053340952,0.03,135.03,135.02,0.063]
[1742053343155,0.03,135.03,135.02,7.4693]
[1742053345645,0.0001,135.03,135.02,7.4693]
[1742053346828,0.03,135.05,135.04,80.6999]
[1742053347142,0.03,135.05,135.04,188.0999]
[1742053348724,0.03,135.05,135.04,195.5051]
[1742053348924,0.063,135.07,135.04,195.5051]
[1742053348925,0.063,135.07,135.04,214.0181]
[1742053351253,13.1875475,135.07,135.04,214.0181]
[1742053351827,0.063,135.07,135.04,214.0181]
[1742053354055,13.1875475,135.08,135.07,80.6369]
[1742053354755,13.1875475,135.08,135.07,88.0404]
[1742053365271,13.47187064,135.08,135.07,80.6369]
[1742053367168,13.32970907,135.08,135.07,80.6369]
[1742053367333,0.20516157,135.08,135.07,88.0404]
[1742053367539,20.20516157,135.08,135.07,88.0404]
[1742053367741,33.32970907,135.08,135.07,88.0404]
[1742053368283,0.063,135.09,135.08,67.4493525]
[1742053368454,13.1875475,135.09,135.08,67.4493525]
[1742053369172,13.1875475,135.09,135.08,74.8523525]
[1742053390363,13.1875475,135.09,135.08,74.9153525]
[1742053392988,13.32970907,135.09,135.08,67.5123525]
[1742053394488,13.32970907,135.09,135.08,74.9153525]
[1742053395883,13.1875475,135.09,135.08,74.9153525]
[1742053398193,0.063,135.11,135.1,67.3863525]
[1742053398369,0.063,135.11,135.1,165.9863525]
[1742053400070,0.063,135.11,135.1,173.3882525]
[1742053400270,0.03,135.13,135.1,205.0176]
[1742053400489,0.03,135.13,135.11,13.1245475]
[1742053400990,0.03,135.13,135.11,98.6]
[1742053401783,0.03,135.13,135.12,7.4008]
[1742053403975,13.1245475,135.15,135.14,67.3563525]
[1742053405702,13.1245475,135.15,135.14,74.7560525]
[1742053406000,13.1875475,135.17,135.14,74.7560525]
[1742053406601,13.1875475,135.17,135.14,173.3560525]
[1742053407182,0.063,135.17,135.14,211.3297]
[1742053407398,0.063,135.17,135.15,13.1245475]
[1742053407591,0.063,135.17,135.14,211.3297]
[1742053408312,0.063,135.17,135.15,13.1245475]
[1742053408877,0.063,135.17,135.14,211.3297]
[1742053409284,0.063,135.17,135.14,198.2051525]
[1742053409507,13.1875475,135.17,135.14,198.2051525]
[1742053409689,13.1875475,135.17,135.14,173.3560525]
[1742053409888,13.1245475,135.15,135.14,165.9563525]
[1742053410879,13.1245475,135.15,135.14,173.3560525]
[1742053411489,33.1245475,135.16,135.14,173.3560525]
[1742053411801,20.0,135.16,135.14,173.3560525]
[1742053412004,13.1875475,135.17,135.14,173.3560525]
[1742053412298,13.1545475,135.18,135.17,67.2933525]
[1742053412784,0.03,135.18,135.17,67.2933525]
[1742053413506,0.03,135.18,135.17,165.8933525]
[1742053414188,0.03,135.18,135.17,173.2913525]
[1742053416900,13.1545475,135.18,135.17,173.2913525]
[1742053418623,0.063,135.21,135.19,54.108805]
[1742053418919,13.1245475,135.2,135.19,54.108805]
[1742053419618,13.40887064,135.2,135.19,54.108805]
[1742053421915,13.1245475,135.2,135.19,61.505705]
[1742053422519,13.1245475,135.2,135.19,54.108805]
[1742053422836,13.1245475,135.2,135.19,61.505705]
[1742053424334,13.1245475,135.2,135.19,54.108805]
[1742053424914,13.1245475,135.2,135.19,61.505705]